[Event "IM Marmaris Karia VIII 2019"]
[Site "Marmaris"]
[Date "2019.07.28"]
[Round "1.2"]
[White "Abdulla, Khayala"]
[Black "Benidze, Davit"]
[Result "0-1"]
[ECO "B15"]
[WhiteElo "2283"]
[BlackElo "2469"]
[Annotator "ChessBase"]
[PlyCount "66"]
[EventDate "2019.07.29"]
[EventType "schev"]
[EventCountry "TUR"]
[SourceTitle "playchess.com"]
[Source "ChessBase"]
[SourceQuality "1"]
[TimeControl "5400+30"]

1. e4 {[%emt 0:00:30]} c6 {[%emt 0:00:30]} 2. d4 {[%emt 0:00:00]} g6 {[%emt 0:00:00]} 3. Nc3 {[%emt 0:00:00]} Bg7 {[%emt 0:00:00]} 4. Nf3 {[%emt 0:01:30]} d5 {[%emt 0:00:00]} 5. h3 {[%emt 0:01:30]} Nh6 {[%emt 0:00:00]} 6. exd5 {[%emt 0:02:30]} cxd5 {[%emt 0:00:30]} 7. Bf4 {[%emt 0:00:30]} Nc6 {[%emt 0:06:30]} 8. Bb5 {[%emt 0:04:30]} O-O {[%emt 0:00:30]} 9. O-O {[%emt 0:01:30]} f6 {[%emt 0:02:30]} 10. Qe2 {[%emt 0:02:30]} Nf7 {[%emt 0:00:00]} 11. Rad1 {[%emt 0:08:30]} a6 {[%emt 0:00:00]} 12. Bxc6 {[%emt 0:03:30]} bxc6 {[%emt 0:00:30]} 13. Rfe1 {[%emt 0:00:30]} Re8 {[%emt 0:00:30]} 14. Na4 {[%emt 0:04:30]} e5 {[%emt 0:03:30]} 15. c4 {[%emt 0:09:30]} g5 {[%emt 0:01:30]} 16. Bh2 {[%emt 0:05:30]} e4 {[%emt 0:08:30]} 17. Nd2 {[%emt 0:06:30]} f5 {[%emt 0:02:30]} 18. Nb3 {[%emt 0:00:30]} f4 {[%emt 0:01:30]} 19. cxd5 {[%emt 0:04:30]} cxd5 {[%emt 0:00:30]} 20. Rc1 {[%emt 0:00:30]} Ra7 {[%emt 0:04:30]} 21. Rc3 {[%emt 0:03:30]} Rae7 {[%emt 0:00:30]} 22. Rec1 {[%emt 0:00:30]} Nd6 {[%emt 0:00:30]} 23. Qh5 {[%emt 0:02:30]} Rf7 {[%emt 0:01:30]} 24. h4 {[%emt 0:02:30]} Bd7 {[%emt 0:05:30]} 25. Nac5 {[%emt 0:07:30]} Nb5 {[%emt 0:02:30]} 26. R3c2 {[%emt 0:07:30]} Bf5 {[%emt 0:00:00]} 27. Nxa6 {[%emt 0:00:30]} e3 {[%emt 0:00:00]} 28. Rc5 {[%emt 0:02:39]} exf2+ {[%emt 0:00:30]} 29. Kxf2 {[%emt 0:00:47]} Nxd4 {[%emt 0:01:30]} 30. Rc7 {[%emt 0:03:30]} Bg6 {[%emt 0:00:30]} 31. Qd1 {[%emt 0:03:19]} Nxb3 {[%emt 0:00:30]} 32. axb3 {[%emt 0:00:35]} Qf6 {[%emt 0:00:30]} 33. Rc8 {[%emt 0:03:11]} Qb6+ {[%emt 0:00:30]} 0-1

[Event "IM Marmaris Karia VIII 2019"]
[Site "Marmaris"]
[Date "2019.07.28"]
[Round "1.3"]
[White "Karaoglan, Doruk"]
[Black "Sibashvili, Giorgi"]
[Result "0-1"]
[ECO "C54"]
[WhiteElo "2278"]
[BlackElo "2389"]
[Annotator "ChessBase"]
[PlyCount "50"]
[EventDate "2019.07.29"]
[EventType "schev"]
[EventCountry "TUR"]
[SourceTitle "playchess.com"]
[Source "ChessBase"]
[SourceQuality "1"]
[TimeControl "5400+30"]

1. e4 {[%emt 0:00:30]} e5 {[%emt 0:01:30]} 2. Nf3 {[%emt 0:00:30]} Nc6 {[%emt 0:00:30]} 3. Bc4 {[%emt 0:00:00]} Bc5 {[%emt 0:00:30]} 4. c3 {[%emt 0:00:00]} Nf6 {[%emt 0:00:00]} 5. d3 {[%emt 0:00:30]} O-O {[%emt 0:00:00]} 6. Bb3 {[%emt 0:00:30]} d5 {[%emt 0:05:30]} 7. Qe2 {[%emt 0:00:00]} dxe4 {[%emt 0:07:30]} 8. dxe4 {[%emt 0:00:00]} Qe7 {[%emt 0:06:30]} 9. h3 {[%emt 0:02:30]} Nh5 {[%emt 0:17:30]} 10. g4 {[%emt 0:27:30]} Nf4 {[%emt 0:00:30]} 11. Bxf4 {[%emt 0:00:30]} exf4 {[%emt 0:00:30]} 12. Nbd2 {[%emt 0:00:00]} a5 {[%emt 0:02:30]} 13. Rg1 {[%emt 0:13:00]} a4 {[%emt 0:08:30]} 14. Bc2 {[%emt 0:02:30]} Re8 {[%emt 0:04:30]} 15. Kf1 {[%emt 0:06:30]} b6 {[%emt 0:07:30]} 16. Re1 {[%emt 0:08:30]} Ne5 {[%emt 0:05:30]} 17. Nxe5 {[%emt 0:00:30]} Qxe5 {[%emt 0:00:30]} 18. Nf3 {[%emt 0:01:30]} Qe6 {[%emt 0:01:30]} 19. Kg2 {[%emt 0:28:18]} Ba6 {[%emt 0:02:30]} 20. Qd2 {[%emt 0:00:14]} Rad8 {[%emt 0:05:30]} 21. Qxf4 {[%emt 0:00:29]} Qxa2 {[%emt 0:01:30]} 22. Rb1 {[%emt 0:03:31]} a3 {[%emt 0:02:26]} 23. Qxc7 {[%emt 0:02:26]} axb2 {[%emt 0:00:42]} 24. Rgd1 {[%emt 0:01:06]} Rxd1 {[%emt 0:01:10]} 25. Rxd1 {[%emt 0:00:01]} b1=Q {[%emt 0:00:35]} 0-1

[Event "IM Marmaris Karia VIII 2019"]
[Site "Marmaris"]
[Date "2019.07.28"]
[Round "1.4"]
[White "Yazici, Ugur Doga"]
[Black "Odeev, Handszar"]
[Result "0-1"]
[ECO "D79"]
[WhiteElo "2143"]
[BlackElo "2360"]
[Annotator "NA"]
[PlyCount "51"]
[EventDate "2019.07.29"]
[EventType "schev"]
[EventCountry "TUR"]
[SourceTitle "playchess.com"]
[Source "ChessBase"]
[SourceQuality "1"]
[TimeControl "5400+30"]

1. Nf3 {[%emt 0:00:30]} Nf6 {[%emt 0:00:30]} 2. g3 {[%emt 0:00:00]} g6 {[%emt 0:00:30]} 3. Bg2 {[%emt 0:00:00]} Bg7 {[%emt 0:00:30]} 4. O-O {[%emt 0:00:00]} O-O {[%emt 0:00:30]} 5. d4 {[%emt 0:00:00]} d5 {[%emt 0:01:30]} 6. Nbd2 {[%emt 0:00:30]} Ne4 {[%emt 0:07:30]} 7. c3 {[%emt 0:05:30]} c5 {[%emt 0:07:30]} 8. Nxe4 {[%emt 0:00:30]} dxe4 {[%emt 0:00:30]} 9. Ne5 {[%emt 0:03:30]} cxd4 {[%emt 0:02:30]} 10. cxd4 {[%emt 0:02:30]} Qd5 {[%emt 0:00:00]} 11. Be3 {[%emt 0:06:30]} Nd7 {[%emt 0:07:00]} 12. Nxd7 {[%emt 0:09:30]} Bxd7 {[%emt 0:00:30]} 13. f3 {[%emt 0:00:30]} exf3 {[%emt 0:00:30]} 14. Bxf3 {[%emt 0:00:30]} Qd6 {[%emt 0:00:30]} 15. Qd2 {[%emt 0:04:30]} Rad8 {[%emt 0:22:30]} 16. Rfd1 {[%emt 0:00:30]} Ba4 {[%emt 0:03:30]} 17. b3 {[%emt 0:00:30]} Bc6 {[%emt 0:00:30]} 18. Bxc6 {[%emt 0:01:30]} bxc6 {[%emt 0:07:30]} 19. Rac1 {[%emt 0:01:30]} h5 {[%emt 0:09:30]} 20. Rc4 {[%emt 0:02:30]} h4 {[%emt 0:02:30]} 21. Bf4 {[%emt 0:02:30]} Qd5 {[%emt 0:01:30]} 22. Qd3 {[%emt 0:04:30]} h3 {[%emt 0:03:30]} 23. e4 {[%emt 0:01:30]} Qh5 {[%emt 0:00:30]} 24. d5 {[%emt 0:05:30]} f5 {[%emt 0:02:34]} 25. d6 {[%emt 0:04:30]} g5 {[%emt 0:01:45]} 26. Ra1 {[%emt 0:08:30]} 0-1

[Event "IM Marmaris Karia VIII 2019"]
[Site "Marmaris"]
[Date "2019.07.28"]
[Round "1.5"]
[White "Caputcuoglu, Zeki Berke"]
[Black "Rzayev, Bahruz"]
[Result "1-0"]
[ECO "A31"]
[WhiteElo "2010"]
[BlackElo "2340"]
[Annotator "NA"]
[PlyCount "55"]
[EventDate "2019.07.29"]
[EventType "schev"]
[EventCountry "TUR"]
[SourceTitle "playchess.com"]
[Source "ChessBase"]
[SourceQuality "1"]
[TimeControl "5400+30"]

1. Nf3 {[%emt 0:00:30]} Nf6 {[%emt 0:00:30]} 2. d4 {[%emt 0:00:00]} c5 {[%emt 0:00:00]} 3. c4 {[%emt 0:00:00]} cxd4 {[%emt 0:00:00]} 4. Nxd4 {[%emt 0:00:30]} e5 {[%emt 0:00:00]} 5. Nb5 {[%emt 0:00:30]} d6 {[%emt 0:00:00]} 6. g3 {[%emt 0:01:30]} Be6 {[%emt 0:00:30]} 7. Bg2 {[%emt 0:02:30]} Nc6 {[%emt 0:00:30]} 8. b3 {[%emt 0:02:30]} a6 {[%emt 0:00:30]} 9. N5c3 {[%emt 0:00:00]} Be7 {[%emt 0:01:30]} 10. O-O {[%emt 0:01:00]} O-O {[%emt 0:00:00]} 11. Nd5 {[%emt 0:03:30]} Bxd5 {[%emt 0:01:00]} 12. cxd5 {[%emt 0:00:00]} Nb8 {[%emt 0:00:30]} 13. e4 {[%emt 0:04:00]} Nbd7 {[%emt 0:00:30]} 14. Be3 {[%emt 0:00:30]} Nc5 {[%emt 0:02:30]} 15. Nd2 {[%emt 0:00:30]} b5 {[%emt 0:03:30]} 16. Qe2 {[%emt 0:04:30]} Nfd7 {[%emt 0:02:30]} 17. Rfc1 {[%emt 0:04:30]} b4 {[%emt 0:08:30]} 18. Bh3 {[%emt 0:07:30]} g6 {[%emt 0:08:30]} 19. a3 {[%emt 0:09:30]} bxa3 {[%emt 0:09:30]} 20. b4 {[%emt 0:01:30]} Nb7 {[%emt 0:03:30]} 21. Rxa3 {[%emt 0:00:30]} Kh8 {[%emt 0:07:30]} 22. Rxa6 {[%emt 0:04:30]} Rb8 {[%emt 0:01:30]} 23. Ba7 {[%emt 0:03:30]} Bg5 {[%emt 0:11:30]} 24. Bxb8 {[%emt 0:01:30]} Nxb8 {[%emt 0:01:30]} 25. Ra2 {[%emt 0:01:30]} Qb6 {[%emt 0:02:30]} 26. Nc4 {[%emt 0:02:30]} Qxb4 {[%emt 0:01:30]} 27. Rb2 {[%emt 0:01:30]} Qc5 {[%emt 0:01:30]} 28. Rcb1 {[%emt 0:00:00]} 1-0

[Event "IM Marmaris Karia VIII 2019"]
[Site "Marmaris"]
[Date "2019.07.28"]
[Round "2.4"]
[White "Rzayev, Bahruz"]
[Black "Yazici, Ugur Doga"]
[Result "1/2-1/2"]
[ECO "E21"]
[WhiteElo "2340"]
[BlackElo "2143"]
[Annotator "NA"]
[PlyCount "107"]
[EventDate "2019.07.29"]
[EventType "schev"]
[EventCountry "TUR"]
[SourceTitle "playchess.com"]
[Source "ChessBase"]
[SourceQuality "1"]
[TimeControl "5400+30"]

1. d4 {[%emt 0:00:30]} Nf6 {[%emt 0:00:30]} 2. c4 {[%emt 0:00:00]} e6 {[%emt 0:00:00]} 3. Nc3 {[%emt 0:02:00]} Bb4 {[%emt 0:00:00]} 4. Qc2 {[%emt 0:00:30]} c5 {[%emt 0:01:30]} 5. Nf3 {[%emt 0:00:30]} b6 {[%emt 0:00:30]} 6. a3 {[%emt 0:05:30]} Bxc3+ {[%emt 0:00:30]} 7. Qxc3 {[%emt 0:00:30]} Bb7 {[%emt 0:00:30]} 8. dxc5 {[%emt 0:03:30]} bxc5 {[%emt 0:01:30]} 9. b4 {[%emt 0:04:30]} O-O {[%emt 0:02:30]} 10. Bb2 {[%emt 0:02:30]} d5 {[%emt 0:04:30]} 11. e3 {[%emt 0:02:30]} Nbd7 {[%emt 0:03:30]} 12. cxd5 {[%emt 0:01:30]} Bxd5 {[%emt 0:05:30]} 13. Be2 {[%emt 0:04:30]} cxb4 {[%emt 0:03:30]} 14. axb4 {[%emt 0:00:30]} Qb6 {[%emt 0:04:30]} 15. O-O {[%emt 0:04:30]} Rfb8 {[%emt 0:00:30]} 16. Ra4 {[%emt 0:10:30]} Nc5 {[%emt 0:10:30]} 17. Qxc5 {[%emt 0:07:30]} Qxc5 {[%emt 0:00:00]} 18. bxc5 {[%emt 0:00:30]} Rxb2 {[%emt 0:00:00]} 19. Bd3 {[%emt 0:00:00]} Rb3 {[%emt 0:02:30]} 20. Ne5 {[%emt 0:04:00]} Nd7 {[%emt 0:16:30]} 21. Bxh7+ {[%emt 0:01:30]} Kxh7 {[%emt 0:00:00]} 22. Nxd7 {[%emt 0:00:30]} f6 {[%emt 0:00:00]} 23. Rfa1 {[%emt 0:09:30]} Bc6 {[%emt 0:02:30]} 24. Rd4 {[%emt 0:00:30]} Rc8 {[%emt 0:02:30]} 25. Rd6 {[%emt 0:04:30]} Rb7 {[%emt 0:00:30]} 26. Nf8+ {[%emt 0:00:00]} Rxf8 {[%emt 0:01:30]} 27. Rxc6 {[%emt 0:00:00]} e5 {[%emt 0:00:30]} 28. h4 {[%emt 0:02:30]} Rd8 {[%emt 0:00:30]} 29. Rca6 {[%emt 0:03:30]} Rc8 {[%emt 0:00:00]} 30. Rc1 {[%emt 0:00:30]} Rb5 {[%emt 0:03:00]} 31. c6 {[%emt 0:00:30]} Rb6 {[%emt 0:00:00]} 32. Rxa7 {[%emt 0:00:30]} Rbxc6 {[%emt 0:00:00]} 33. Rxc6 {[%emt 0:00:30]} Rxc6 {[%emt 0:00:00]} 34. g3 {[%emt 0:00:30]} Kh6 {[%emt 0:00:00]} 35. Kg2 {[%emt 0:00:00]} Rc2 {[%emt 0:00:30]} 36. g4 {[%emt 0:00:00]} Rc1 {[%emt 0:02:30]} 37. Ra6 {[%emt 0:00:30]} Kg6 {[%emt 0:00:30]} 38. g5 {[%emt 0:01:30]} Rc4 {[%emt 0:01:30]} 39. Kg3 {[%emt 0:00:30]} Rb4 {[%emt 0:01:30]} 40. gxf6 {[%emt 0:06:30]} gxf6 {[%emt 0:00:00]} 41. Ra8 {[%emt 0:00:30]} Kg7 {[%emt 0:02:00]} 42. f3 {[%emt 0:00:34]} e4 {[%emt 0:03:30]} 43. f4 {[%emt 0:04:37]} Kg6 {[%emt 0:01:30]} 44. Ra6 {[%emt 0:01:34]} Rb3 {[%emt 0:00:30]} 45. Kg4 {[%emt 0:00:09]} Rxe3 {[%emt 0:05:30]} 46. h5+ {[%emt 0:00:30]} Kg7 {[%emt 0:02:30]} 47. Ra7+ {[%emt 0:01:53]} Kh6 {[%emt 0:00:30]} 48. Rf7 {[%emt 0:00:14]} Re1 {[%emt 0:00:30]} 49. Rxf6+ {[%emt 0:00:06]} Kg7 {[%emt 0:00:30]} 50. Kg5 {[%emt 0:02:01]} Rg1+ {[%emt 0:00:30]} 51. Kf5 {[%emt 0:00:01]} e3 {[%emt 0:00:30]} 52. h6+ {[%emt 0:02:28]} Kh7 {[%emt 0:01:30]} 53. Re6 {[%emt 0:00:13]} Rg3 {[%emt 0:00:41]} 54. Ke4 {[%emt 0:05:36]} 1/2-1/2

[Event "IM Marmaris Karia VIII 2019"]
[Site "Marmaris"]
[Date "2019.07.28"]
[Round "2.5"]
[White "Maghalashvili, Davit"]
[Black "Caputcuoglu, Zeki Berke"]
[Result "1-0"]
[ECO "E69"]
[WhiteElo "2485"]
[BlackElo "2010"]
[Annotator "ChessBase"]
[PlyCount "59"]
[EventDate "2019.07.29"]
[EventType "schev"]
[EventCountry "TUR"]
[SourceTitle "playchess.com"]
[Source "ChessBase"]
[SourceQuality "1"]
[TimeControl "5400+30"]

1. Nf3 {[%emt 0:00:30]} Nf6 {[%emt 0:00:30]} 2. g3 {[%emt 0:00:00]} g6 {[%emt 0:00:30]} 3. Bg2 {[%emt 0:00:00]} Bg7 {[%emt 0:00:00]} 4. c4 {[%emt 0:00:00]} O-O {[%emt 0:00:00]} 5. O-O {[%emt 0:00:00]} d6 {[%emt 0:00:30]} 6. d4 {[%emt 0:00:00]} c6 {[%emt 0:00:30]} 7. Nc3 {[%emt 0:00:00]} Qa5 {[%emt 0:00:30]} 8. e4 {[%emt 0:01:30]} e5 {[%emt 0:00:30]} 9. h3 {[%emt 0:02:30]} Nbd7 {[%emt 0:00:30]} 10. Be3 {[%emt 0:02:30]} exd4 {[%emt 0:01:30]} 11. Nxd4 {[%emt 0:09:30]} Nb6 {[%emt 0:04:30]} 12. Nb3 {[%emt 0:07:30]} Qh5 {[%emt 0:05:30]} 13. Qxh5 {[%emt 0:02:30]} Nxh5 {[%emt 0:00:30]} 14. Na5 {[%emt 0:01:30]} Be6 {[%emt 0:06:30]} 15. g4 {[%emt 0:03:30]} Nf6 {[%emt 0:00:30]} 16. c5 {[%emt 0:00:30]} Nc4 {[%emt 0:01:30]} 17. Nxc4 {[%emt 0:00:00]} Bxc4 {[%emt 0:00:00]} 18. Rfd1 {[%emt 0:00:00]} dxc5 {[%emt 0:01:00]} 19. Bxc5 {[%emt 0:05:30]} Rfe8 {[%emt 0:02:30]} 20. f4 {[%emt 0:01:30]} b6 {[%emt 0:04:30]} 21. Bf2 {[%emt 0:00:00]} Rad8 {[%emt 0:02:30]} 22. Bh4 {[%emt 0:01:00]} Rxd1+ {[%emt 0:17:30]} 23. Rxd1 {[%emt 0:01:30]} Rc8 {[%emt 0:00:00]} 24. b3 {[%emt 0:02:30]} Ba6 {[%emt 0:00:00]} 25. e5 {[%emt 0:00:30]} Ne8 {[%emt 0:00:30]} 26. Rd7 {[%emt 0:00:30]} Nc7 {[%emt 0:18:30]} 27. Bxc6 {[%emt 0:01:30]} Ne6 {[%emt 0:00:30]} 28. Nd5 {[%emt 0:00:30]} Bf8 {[%emt 0:00:30]} 29. Rxa7 {[%emt 0:02:30]} Nc5 {[%emt 0:02:30]} 30. Nf6+ {[%emt 0:00:30]} 1-0

[Event "IM Marmaris Karia VIII 2019"]
[Site "Marmaris"]
[Date "2019.07.28"]
[Round "3.1"]
[White "Dedebas, Emre Emin"]
[Black "Sibashvili, Giorgi"]
[Result "1/2-1/2"]
[ECO "D02"]
[WhiteElo "2301"]
[BlackElo "2389"]
[Annotator "NA"]
[PlyCount "50"]
[EventDate "2019.07.29"]
[EventType "schev"]
[EventCountry "TUR"]
[SourceTitle "playchess.com"]
[Source "ChessBase"]
[SourceQuality "1"]
[TimeControl "5400+30"]

1. d4 {[%emt 0:00:30]} Nf6 {[%emt 0:09:30]} 2. Nf3 {[%emt 0:00:30]} d5 {[%emt 0:00:00]} 3. Bf4 {[%emt 0:00:30]} c5 {[%emt 0:00:00]} 4. e3 {[%emt 0:00:30]} Nc6 {[%emt 0:00:30]} 5. Nbd2 {[%emt 0:00:30]} e6 {[%emt 0:00:30]} 6. c3 {[%emt 0:00:30]} Bd6 {[%emt 0:00:30]} 7. Bg3 {[%emt 0:00:00]} O-O {[%emt 0:10:30]} 8. Bd3 {[%emt 0:00:00]} b6 {[%emt 0:05:30]} 9. Qe2 {[%emt 0:00:00]} Bb7 {[%emt 0:04:30]} 10. Rd1 {[%emt 0:00:00]} Qe7 {[%emt 0:04:30]} 11. e4 {[%emt 0:09:30]} dxe4 {[%emt 0:01:30]} 12. Nxe4 {[%emt 0:03:30]} Nxe4 {[%emt 0:01:30]} 13. Bxe4 {[%emt 0:02:30]} Rad8 {[%emt 0:12:30]} 14. Bh4 {[%emt 0:18:30]} f6 {[%emt 0:00:30]} 15. O-O {[%emt 0:14:30]} cxd4 {[%emt 0:07:30]} 16. cxd4 {[%emt 0:02:30]} g5 {[%emt 0:03:30]} 17. Bg3 {[%emt 0:08:30]} g4 {[%emt 0:01:30]} 18. Nd2 {[%emt 0:25:20]} Bxg3 {[%emt 0:06:30]} 19. hxg3 {[%emt 0:00:11]} f5 {[%emt 0:00:00]} 20. Bxc6 {[%emt 0:00:08]} Bxc6 {[%emt 0:00:00]} 21. Nc4 {[%emt 0:00:06]} Bd5 {[%emt 0:00:30]} 22. Ne3 {[%emt 0:00:03]} Bc6 {[%emt 0:00:30]} 23. Nc4 {[%emt 0:00:04]} Bd5 {[%emt 0:00:00]} 24. Ne3 {[%emt 0:00:05]} Bc6 {[%emt 0:00:00]} 25. Nc4 {[%emt 0:00:04]} Bd5 {[%emt 0:00:30]} 1/2-1/2

[Event "IM Marmaris Karia VIII 2019"]
[Site "Marmaris"]
[Date "2019.07.28"]
[Round "3.2"]
[White "Abdulla, Khayala"]
[Black "Odeev, Handszar"]
[Result "1/2-1/2"]
[ECO "B32"]
[WhiteElo "2283"]
[BlackElo "2360"]
[Annotator "NA"]
[PlyCount "62"]
[EventDate "2019.07.29"]
[EventType "schev"]
[EventCountry "TUR"]
[SourceTitle "playchess.com"]
[Source "ChessBase"]
[SourceQuality "1"]
[TimeControl "5400+30"]

1. e4 {[%emt 0:01:30]} c5 {[%emt 0:00:30]} 2. Nf3 {[%emt 0:00:30]} Nc6 {[%emt 0:04:30]} 3. d4 {[%emt 0:03:30]} cxd4 {[%emt 0:00:30]} 4. Nxd4 {[%emt 0:00:30]} e5 {[%emt 0:00:30]} 5. Nb5 {[%emt 0:00:30]} d6 {[%emt 0:00:30]} 6. N1c3 {[%emt 0:00:30]} a6 {[%emt 0:00:30]} 7. Na3 {[%emt 0:04:30]} b5 {[%emt 0:01:30]} 8. Nd5 {[%emt 0:00:30]} Nce7 {[%emt 0:00:00]} 9. c4 {[%emt 0:06:30]} Nxd5 {[%emt 0:01:00]} 10. Qxd5 {[%emt 0:01:30]} Be6 {[%emt 0:07:30]} 11. Qd1 {[%emt 0:04:30]} b4 {[%emt 0:26:30]} 12. Nc2 {[%emt 0:10:30]} Nf6 {[%emt 0:01:30]} 13. Bd3 {[%emt 0:07:30]} a5 {[%emt 0:05:30]} 14. O-O {[%emt 0:01:30]} Be7 {[%emt 0:00:30]} 15. f4 {[%emt 0:03:30]} exf4 {[%emt 0:14:30]} 16. Bxf4 {[%emt 0:00:30]} Ng4 {[%emt 0:00:30]} 17. Nd4 {[%emt 0:07:30]} Bd7 {[%emt 0:07:30]} 18. Be2 {[%emt 0:10:30]} Qb6 {[%emt 0:10:01]} 19. Kh1 {[%emt 0:01:30]} Ne5 {[%emt 0:04:04]} 20. Nf3 {[%emt 0:07:30]} Ng6 {[%emt 0:04:19]} 21. Bg3 {[%emt 0:00:30]} Rd8 {[%emt 0:00:01]} 22. Qc2 {[%emt 0:04:30]} O-O {[%emt 0:00:45]} 23. Rad1 {[%emt 0:01:30]} Rfe8 {[%emt 0:02:46]} 24. Rd2 {[%emt 0:04:36]} Bc6 {[%emt 0:00:54]} 25. Nd4 {[%emt 0:03:36]} Bb7 {[%emt 0:00:32]} 26. Nf5 {[%emt 0:01:50]} Bf8 {[%emt 0:00:11]} 27. Bf3 {[%emt 0:02:56]} Ne5 {[%emt 0:00:23]} 28. Rfd1 {[%emt 0:02:07]} Qc5 {[%emt 0:02:49]} 29. b3 {[%emt 0:04:20]} g6 {[%emt 0:00:15]} 30. Bf2 {[%emt 0:02:00]} Qc7 {[%emt 0:00:41]} 31. Nd4 {[%emt 0:01:10]} Qb8 {[%emt 0:03:34]} 1/2-1/2

[Event "IM Marmaris Karia VIII 2019"]
[Site "Marmaris"]
[Date "2019.07.28"]
[Round "3.3"]
[White "Karaoglan, Doruk"]
[Black "Rzayev, Bahruz"]
[Result "0-1"]
[ECO "C28"]
[WhiteElo "2278"]
[BlackElo "2340"]
[Annotator "NA"]
[PlyCount "52"]
[EventDate "2019.07.29"]
[EventType "schev"]
[EventCountry "TUR"]
[SourceTitle "playchess.com"]
[Source "ChessBase"]
[SourceQuality "1"]
[TimeControl "5400+30"]

1. e4 {[%emt 0:00:30]} e5 {[%emt 0:00:30]} 2. Nc3 {[%emt 0:00:30]} Nf6 {[%emt 0:00:00]} 3. Bc4 {[%emt 0:00:00]} Nc6 {[%emt 0:00:00]} 4. d3 {[%emt 0:00:00]} Na5 {[%emt 0:00:30]} 5. Bb3 {[%emt 0:00:30]} Nxb3 {[%emt 0:00:00]} 6. axb3 {[%emt 0:00:30]} d5 {[%emt 0:00:00]} 7. exd5 {[%emt 0:00:00]} Nxd5 {[%emt 0:00:30]} 8. Qh5 {[%emt 0:03:00]} Nb4 {[%emt 0:03:30]} 9. Qxe5+ {[%emt 0:10:30]} Be7 {[%emt 0:00:30]} 10. Kd1 {[%emt 0:15:30]} O-O {[%emt 0:03:30]} 11. Nf3 {[%emt 0:04:30]} Be6 {[%emt 0:10:30]} 12. Qd4 {[%emt 0:12:30]} Qc8 {[%emt 0:06:30]} 13. Ng5 {[%emt 0:10:30]} c5 {[%emt 0:21:30]} 14. Qe4 {[%emt 0:00:30]} Bxg5 {[%emt 0:00:30]} 15. Bxg5 {[%emt 0:00:30]} Re8 {[%emt 0:00:30]} 16. Qh4 {[%emt 0:04:30]} Qd7 {[%emt 0:08:30]} 17. Qg3 {[%emt 0:08:30]} Bf5 {[%emt 0:00:30]} 18. Kd2 {[%emt 0:06:30]} b5 {[%emt 0:12:30]} 19. Bf4 {[%emt 0:11:04]} c4 {[%emt 0:03:30]} 20. Bd6 {[%emt 0:03:19]} a5 {[%emt 0:00:30]} 21. bxc4 {[%emt 0:01:53]} bxc4 {[%emt 0:00:00]} 22. d4 {[%emt 0:02:23]} Nxc2 {[%emt 0:00:00]} 23. Nd5 {[%emt 0:00:47]} Bg6 {[%emt 0:02:30]} 24. Nc7 {[%emt 0:01:52]} Nxd4 {[%emt 0:00:30]} 25. Nxa8 {[%emt 0:00:36]} Re2+ {[%emt 0:00:30]} 26. Kc1 {[%emt 0:00:55]} Qf5 {[%emt 0:00:30]} 0-1